fUSD/lending_fUSD_20240819
["ID","MTS","AMOUNT","RATE_DAILY","PERIOD"]
[335264842,1724058631909,-516.64069132,0.00010699,2]
[335264843,1724058631919,-500.0,0.00010699,2]
[335264844,1724058631928,-500.0,0.00010699,2]
[335264845,1724058631938,-500.0,0.00010699,2]
[335264846,1724058631947,-500.0,0.00010699,2]
[335264848,1724058631957,-588.94,0.00010699,2]
[335264850,1724058631966,-520.51229649,0.00010699,2]
[335264851,1724058631976,-500.0,0.00010699,2]
[335264853,1724058631986,-519.91734458,0.00010699,2]
[335264855,1724058631995,-1301.29,0.00010699,2]
[335264857,1724058632005,-1357.32,0.00010699,2]
[335264858,1724058632014,-500.0,0.00010699,2]
[335264859,1724058632023,-500.0,0.00010699,2]
[335264860,1724058632033,-516.71951279,0.00010699,2]
[335264861,1724058632043,-500.0,0.00010699,2]
[335264862,1724058632053,-500.0,0.00010699,2]
[335264863,1724058632062,-515.53616332,0.00010699,2]
[335264864,1724058632072,-504.14,0.00010699,2]
[335264865,1724058632081,-525.68110044,0.00010699,2]
[335264866,1724058632091,-500.0,0.00010699,2]
[335264867,1724058632100,-500.0,0.00010699,2]
[335264868,1724058632110,-500.0,0.00010699,2]
[335264869,1724058632119,-500.0,0.00010699,2]
[335264870,1724058632128,-4182.74,0.00010699,2]
[335264871,1724058632138,-500.0,0.00010699,2]
[335264872,1724058632148,-1115.6,0.00010699,2]
[335264873,1724058632159,-500.0,0.00010699,2]
[335264874,1724058632169,-500.0,0.00010699,2]
[335264875,1724058632179,-406.70199124,0.00010699,2]
[335264876,1724058632188,-500.0,0.00010699,2]
[335264877,1724058632198,-500.0,0.00010699,2]
[335264878,1724058632208,-500.0,0.00010699,2]
[335264879,1724058632217,-500.0,0.00010699,2]
[335264880,1724058632227,-500.0,0.00010699,2]
[335264881,1724058632236,-508.79404831,0.00010699,2]
[335264882,1724058632246,-500.0,0.00010699,2]
[335264883,1724058632256,-4953.27,0.00010699,2]
[335264884,1724058632266,-500.0,0.00010699,2]
[335264885,1724058632276,-500.0,0.00010699,2]
[335264886,1724058632285,-530.62301988,0.00010699,2]
[335264887,1724058632295,-500.0,0.00010699,2]
[335264888,1724058632305,-500.0,0.00010699,2]
[335264889,1724058632317,-500.0,0.00010699,2]
[335264890,1724058632326,-500.0,0.00010699,2]
[335264891,1724058632336,-500.0,0.00010699,2]
[335264892,1724058632345,-500.0,0.00010699,2]
[335264893,1724058632355,-3719.02,0.00010699,2]
[335264894,1724058632365,-500.0,0.00010699,2]
[335264895,1724058632375,-500.0,0.00010699,2]
[335264896,1724058632384,-500.0,0.00010699,2]
[335264897,1724058632394,-500.0,0.00010699,2]
[335264898,1724058632403,-500.0,0.00010699,2]
[335264899,1724058632416,-915.34,0.00010699,2]
[335264900,1724058632426,-680.48,0.00010699,2]
[335264901,1724058632435,-500.0,0.00010699,2]
[335264902,1724058632445,-516.36977212,0.00010699,2]
[335264903,1724058632454,-506.59397127,0.00010699,2]
[335264904,1724058632463,-500.0,0.00010699,2]
[335264905,1724058632473,-500.0,0.00010699,2]
[335264906,1724058632482,-531.49873595,0.00010699,2]
[335264907,1724058632492,-500.0,0.00010699,2]
[335264908,1724058632502,-500.0,0.00010699,2]
[335264909,1724058632511,-500.0,0.00010699,2]
[335264910,1724058632520,-515.20744326,0.00010699,2]
[335264911,1724058632530,-510.6,0.00010699,2]
[335264912,1724058632540,-5404.73,0.00010699,2]
[335264913,1724058632549,-510.74794111,0.00010699,2]
[335264914,1724058632559,-500.0,0.00010699,2]
[335264915,1724058632569,-500.0,0.00010699,2]
[335264916,1724058632579,-874.52,0.00010699,2]
[335264917,1724058632589,-518.99051113,0.00010699,2]
[335264918,1724058632598,-500.0,0.00010699,2]
[335264919,1724058632608,-500.0,0.00010699,2]
[335264920,1724058632617,-520.84759511,0.00010699,2]
[335264921,1724058632627,-500.0,0.00010699,2]
[335264922,1724058632636,-400.0,0.00010699,2]
[335264923,1724058632645,-500.0,0.00010699,2]
[335264924,1724058632656,-500.0,0.00010699,2]
[335264925,1724058632826,-6824.03,0.00010699,2]
[335264926,1724058632836,-500.0,0.00010699,2]
[335264927,1724058632845,-665.31,0.00010699,2]
[335264928,1724058632854,-500.0,0.00010699,2]
[335264929,1724058632864,-500.0,0.00010699,2]
[335264930,1724058632875,-500.0,0.00010699,2]
[335264931,1724058632884,-500.0,0.00010699,2]
[335264932,1724058632894,-500.0,0.00010699,2]
[335264933,1724058632903,-500.0,0.00010699,2]
[335264934,1724058632913,-500.0,0.00010699,2]
[335264935,1724058632922,-500.0,0.00010699,2]
[335264936,1724058632930,-515.30497912,0.00010699,2]
[335264937,1724058632940,-506.86324531,0.00010699,2]
[335264938,1724058632949,-856.94,0.00010699,2]
[335264939,1724058632959,-500.0,0.00010699,2]
[335264940,1724058632968,-500.0,0.00010699,2]
[335264941,1724058632977,-494.16516924,0.00010699,2]
[335264942,1724058632986,-500.0,0.00010699,2]
[335264943,1724058632996,-500.0,0.00010699,2]
[335264944,1724058633006,-500.0,0.00010699,2]
[335264945,1724058633015,-500.0,0.00010699,2]
[335264946,1724058633023,-500.0,0.00010699,2]
[335264947,1724058633033,-271.58791323,0.00010699,2]
[335264948,1724058633042,-500.0,0.00010699,2]
[335264949,1724058633051,-1085.33,0.00010699,2]
[335264950,1724058633060,-537.63,0.00010699,2]
[335264951,1724058633070,-740.17,0.00010699,2]
[335264952,1724058633080,-3254.26,0.00010699,2]
[335264953,1724058633089,-500.0,0.00010699,2]
[335264954,1724058633098,-6652.69,0.00010699,2]
[335264955,1724058633107,-500.0,0.00010699,2]
[335264956,1724058633117,-500.0,0.00010699,2]
[335264957,1724058633127,-500.0,0.00010699,2]
[335264958,1724058633136,-537.33,0.00010699,2]
[335264959,1724058633146,-664.86,0.00010699,2]
[335264960,1724058633156,-500.0,0.00010699,2]
[335264961,1724058633166,-500.0,0.00010699,2]
[335264962,1724058633176,-510.45600422,0.00010699,2]
[335264963,1724058633186,-3975.35,0.00010699,2]
[335264964,1724058633197,-500.0,0.00010699,2]
[335264965,1724058633207,-500.0,0.00010699,2]
[335264966,1724058633217,-1004.0,0.00010699,2]
[335264967,1724058633227,-500.0,0.00010699,2]
[335264968,1724058633238,-500.0,0.00010699,2]
[335264969,1724058633248,-591.44,0.00010699,2]
[335264970,1724058633258,-6941.34,0.00010699,2]
[335264971,1724058633268,-530.85347655,0.00010699,2]
[335264972,1724058633278,-1228.78,0.00010699,2]
[335264973,1724058633288,-500.0,0.00010699,2]
[335264974,1724058633298,-500.0,0.00010699,2]
[335264975,1724058633307,-500.0,0.00010699,2]
[335264976,1724058633317,-500.0,0.00010699,2]
[335264977,1724058633327,-520.94336174,0.00010699,2]
[335264978,1724058633337,-500.0,0.00010699,2]
[335264979,1724058633347,-1359.29,0.00010699,2]
[335264980,1724058633356,-500.0,0.00010699,2]
[335264981,1724058633366,-500.0,0.00010699,2]
[335264982,1724058633376,-3646.86,0.00010699,2]
[335264983,1724058633385,-534.25,0.00010699,2]
[335264984,1724058633395,-500.0,0.00010699,2]
[335264985,1724058633406,-4837.8,0.00010699,2]
[335264986,1724058633415,-500.0,0.00010699,2]
[335264987,1724058633425,-500.0,0.00010699,2]
[335264988,1724058633434,-500.0,0.00010699,2]
[335264989,1724058633444,-1897.8,0.00010699,2]
[335264990,1724058633454,-500.0,0.00010699,2]
[335264991,1724058633463,-500.0,0.00010699,2]
[335264992,1724058633473,-513.18357506,0.00010699,2]
[335264993,1724058633483,-500.0,0.00010699,2]
[335264994,1724058633492,-500.0,0.00010699,2]
[335264995,1724058633502,-500.0,0.00010699,2]
[335264996,1724058633512,-7144.69,0.00010699,2]
[335264997,1724058633521,-500.0,0.00010699,2]
[335264998,1724058633531,-500.0,0.00010699,2]
[335264999,1724058633540,-575.18,0.00010699,2]
[335265000,1724058633549,-500.0,0.00010699,2]
[335265001,1724058633558,-523.14508325,0.00010699,2]
[335265002,1724058633569,-500.0,0.00010699,2]
[335265003,1724058633579,-500.0,0.00010699,2]
[335265004,1724058633589,-310.29744378,0.00010699,2]
[335265005,1724058633599,-764.35,0.00010699,2]
[335265006,1724058633608,-500.0,0.00010699,2]
[335265007,1724058633618,-500.0,0.00010699,2]
[335265008,1724058633627,-607.0300886,0.00010699,2]
[335265009,1724058633636,-500.0,0.00010699,2]
[335265010,1724058633646,-500.0,0.00010699,2]
[335265011,1724058633656,-555.79,0.00010699,2]
[335265012,1724058633665,-500.0,0.00010699,2]
[335265013,1724058633675,-91734.20020655,0.00010699,2]
[335265014,1724058633684,-665.58,0.00010699,2]
[335265015,1724058633694,-500.0,0.00010699,2]
[335265016,1724058633704,-500.0,0.00010699,2]
[335265017,1724058633713,-162716.3116,0.000107,2]
[335265018,1724058633723,-6855.8753,0.000107,2]
[335265019,1724058633735,-1000.0,0.000107,2]
[335265020,1724058633745,-151.0,0.000107,2]
[335265021,1724058633754,-151.0,0.000107,2]
[335265022,1724058633764,-151.0,0.000107,2]
[335265023,1724058633775,-151.0,0.000107,2]
[335265024,1724058633785,-151.0,0.000107,2]
[335265025,1724058633794,-179.31,0.00010781,2]
[335265026,1724058633804,-179.31,0.00010782,2]
[335265027,1724058633814,-179.31,0.00010782,2]
[335265028,1724058633825,-179.31,0.00010782,2]
[335265029,1724058633834,-179.31,0.00010782,2]
[335265030,1724058633844,-500.0,0.00010787,2]
[335265031,1724058633854,-281.1116,0.00010787,2]
[335265032,1724058633864,-179.31,0.00010788,2]
[335265033,1724058633874,-179.31,0.00010788,2]
[335265034,1724058633884,-179.31,0.00010788,2]
[335265035,1724058633894,-500.0,0.00010791,2]
[335265036,1724058633903,-3254.26,0.00010791,2]
[335265037,1724058633914,-537.33,0.00010791,2]
[335265038,1724058633924,-1273.61,0.00010791,2]
[335265039,1724058633934,-1273.61,0.00010791,2]
[335265040,1724058633944,-500.0,0.00010791,2]
[335265041,1724058633953,-376.01636002,0.00010791,2]
[335265042,1724058633963,-7144.69,0.00010791,2]
[335265043,1724058633972,-500.0,0.00010791,2]
[335265044,1724058633982,-500.0,0.00010791,2]
[335265045,1724058633991,-500.0,0.00010791,2]
[335265046,1724058634001,-500.0,0.00010791,2]
[335265047,1724058634010,-555.79,0.00010791,2]
[335265048,1724058634020,-151.0,0.00010792,2]
[335265049,1724058634029,-151.0,0.00010792,2]
[335265050,1724058634039,-388.738334,0.00010792,2]
[335265051,1724058634048,-388.738334,0.00010792,2]
[335265052,1724058634058,-151.0,0.00010792,2]
[335265053,1724058634067,-151.0,0.00010792,2]
[335265054,1724058634078,-151.0,0.00010792,2]
[335265055,1724058634087,-937.710506,0.00010792,2]
[335265056,1724058634097,-261.493027,0.00010792,2]
[335265057,1724058634106,-937.710506,0.00010792,2]
[335265058,1724058634116,-261.493027,0.00010792,2]
[335265059,1724058634126,-151.0,0.00010792,2]
[335265060,1724058634135,-319.688934,0.00010792,2]
[335265061,1724058634144,-319.688934,0.00010792,2]
[335265062,1724058634154,-151.0,0.00010792,2]
[335265063,1724058634163,-151.0,0.00010792,2]
[335265064,1724058634173,-151.0,0.00010792,2]
[335265065,1724058634183,-151.0,0.00010792,2]
[335265066,1724058634192,-166.560557,0.00010792,2]
[335265067,1724058634202,-166.560557,0.00010792,2]
[335265068,1724058634211,-151.0,0.00010792,2]
[335265069,1724058634221,-151.0,0.00010792,2]
[335265070,1724058634231,-154.656534,0.00010792,2]
[335265071,1724058634240,-151.0,0.00010792,2]
[335265072,1724058634250,-151.0,0.00010792,2]
[335265073,1724058634259,-151.0,0.00010792,2]
[335265074,1724058634269,-328026.60936649,0.00010792,2]
[335265075,1724058634278,-500.0,0.00010797,2]
[335265076,1724058634287,-3254.26,0.00010797,2]
[335265077,1724058634297,-537.33,0.00010797,2]
[335265078,1724058634306,-500.0,0.00010797,2]
[335265079,1724058634316,-7144.69,0.00010797,2]
[335265080,1724058634325,-500.0,0.00010797,2]
[335265081,1724058634334,-500.0,0.00010797,2]
[335265082,1724058634344,-555.79,0.00010797,2]
[335265083,1724058634353,-596.0,0.00010798,2]
[335265084,1724058634363,-1499.12,0.00010798,2]
[335265085,1724058634373,-500.0,0.00010798,2]
[335265086,1724058634382,-500.0,0.00010798,2]
[335265087,1724058634391,-500.0,0.00010798,2]
[335265088,1724058634400,-500.0,0.00010798,2]
[335265089,1724058634411,-500.0,0.00010798,2]
[335265090,1724058634421,-500.0,0.00010798,2]
[335265091,1724058634430,-500.0,0.00010798,2]
[335265092,1724058634439,-500.0,0.00010798,2]
[335265093,1724058634448,-1357.32,0.00010798,2]
[335265094,1724058634457,-500.0,0.00010798,2]
[335265095,1724058634466,-500.0,0.00010798,2]
[335265096,1724058634477,-500.0,0.00010798,2]
[335265097,1724058634486,-500.0,0.00010798,2]
[335265098,1724058634495,-504.14,0.00010798,2]
[335265099,1724058634504,-500.0,0.00010798,2]
[335265100,1724058634513,-500.0,0.00010798,2]
[335265101,1724058634522,-346.19046148,0.00010798,2]
[335265102,1724058634532,-500.0,0.00010798,2]
[335265103,1724058634541,-4182.74,0.00010798,2]
[335265104,1724058634552,-500.0,0.00010798,2]
[335265105,1724058634561,-1115.6,0.00010798,2]
[335265106,1724058634570,-500.0,0.00010798,2]
[335265107,1724058634579,-386.19306892,0.00010798,2]
[335265108,1724058634588,-500.0,0.00010798,2]
[335265109,1724058634597,-500.0,0.00010798,2]
[335265110,1724058634606,-500.0,0.00010798,2]
[335265111,1724058634615,-500.0,0.00010798,2]
[335265112,1724058634625,-500.0,0.00010798,2]
[335265113,1724058634634,-500.0,0.00010798,2]
[335265114,1724058634643,-4953.27,0.00010798,2]
[335265115,1724058634653,-500.0,0.00010798,2]
[335265116,1724058634663,-500.0,0.00010798,2]
[335265117,1724058634673,-500.0,0.00010798,2]
[335265118,1724058634683,-500.0,0.00010798,2]
[335265119,1724058634692,-500.0,0.00010798,2]
[335265120,1724058634701,-500.0,0.00010798,2]
[335265121,1724058634711,-500.0,0.00010798,2]
[335265122,1724058634721,-500.0,0.00010798,2]
[335265123,1724058634734,-3719.02,0.00010798,2]
[335265124,1724058634743,-500.0,0.00010798,2]
[335265125,1724058634754,-500.0,0.00010798,2]
[335265126,1724058634763,-500.0,0.00010798,2]
[335265127,1724058634774,-500.0,0.00010798,2]
[335265128,1724058634784,-500.0,0.00010798,2]
[335265129,1724058634793,-915.34,0.00010798,2]
[335265130,1724058634803,-680.48,0.00010798,2]
[335265131,1724058634812,-500.0,0.00010798,2]
[335265132,1724058634825,-500.0,0.00010798,2]
[335265133,1724058634835,-500.0,0.00010798,2]
[335265134,1724058634844,-151.0,0.00010798,2]
[335265135,1724058634854,-500.0,0.00010798,2]
[335265136,1724058634863,-500.0,0.00010798,2]
[335265137,1724058634872,-500.0,0.00010798,2]
[335265138,1724058634882,-510.6,0.00010798,2]
[335265139,1724058634891,-5404.73,0.00010798,2]
[335265140,1724058634900,-500.0,0.00010798,2]
[335265141,1724058634912,-874.52,0.00010798,2]
[335265142,1724058634922,-535.93001979,0.00010798,2]
[335265143,1724058634931,-500.0,0.00010798,2]
[335265144,1724058634940,-500.0,0.00010798,2]
[335265145,1724058634949,-400.0,0.00010798,2]
[335265146,1724058634959,-500.0,0.00010798,2]
[335265147,1724058634969,-514.5264062,0.00010798,2]
[335265148,1724058634978,-6824.03,0.00010798,2]
[335265149,1724058634988,-521.63168872,0.00010798,2]
[335265150,1724058634996,-665.31,0.00010798,2]
[335265151,1724058635005,-500.0,0.00010798,2]
[335265152,1724058635015,-500.0,0.00010798,2]
[335265153,1724058635024,-500.0,0.00010798,2]
[335265154,1724058635034,-500.0,0.00010798,2]
[335265155,1724058635043,-500.0,0.00010798,2]
[335265156,1724058635052,-500.0,0.00010798,2]
[335265157,1724058635061,-500.0,0.00010798,2]
[335265158,1724058635071,-500.0,0.00010798,2]
[335265159,1724058635080,-856.94,0.00010798,2]
[335265160,1724058635089,-500.0,0.00010798,2]
[335265161,1724058635098,-500.0,0.00010798,2]
[335265162,1724058635107,-500.0,0.00010798,2]
[335265163,1724058635117,-500.0,0.00010798,2]
[335265164,1724058635126,-542.49517813,0.00010798,2]
[335265165,1724058635135,-500.0,0.00010798,2]
[335265166,1724058635144,-575.95274265,0.00010798,2]
[335265167,1724058635153,-1085.33,0.00010798,2]
[335265168,1724058635164,-516.83102328,0.00010798,2]
[335265169,1724058635173,-537.63,0.00010798,2]
[335265170,1724058635182,-740.17,0.00010798,2]
[335265171,1724058635191,-500.0,0.00010798,2]
[335265172,1724058635201,-6652.69,0.00010798,2]
[335265173,1724058635211,-151.0,0.00010798,2]
[335265174,1724058635220,-500.0,0.00010798,2]
[335265175,1724058635229,-500.0,0.00010798,2]
[335265176,1724058635238,-151.0,0.00010798,2]
[335265177,1724058635247,-500.0,0.00010798,2]
[335265178,1724058635257,-151.0,0.00010798,2]
[335265179,1724058635267,-664.86,0.00010798,2]
[335265180,1724058635276,-500.0,0.00010798,2]
[335265181,1724058635286,-151.0,0.00010798,2]
[335265182,1724058635296,-500.0,0.00010798,2]
[335265183,1724058635308,-3975.35,0.00010798,2]
[335265184,1724058635318,-500.0,0.00010798,2]
[335265185,1724058635328,-602.65941981,0.00010798,2]
[335265186,1724058635338,-1004.0,0.00010798,2]
[335265187,1724058635347,-500.0,0.00010798,2]
[335265188,1724058635356,-500.0,0.00010798,2]
[335265189,1724058635366,-591.44,0.00010798,2]
[335265190,1724058635375,-6941.34,0.00010798,2]
[335265191,1724058635385,-1228.78,0.00010798,2]
[335265192,1724058635394,-166.560557,0.00010798,2]
[335265193,1724058635403,-614.49198945,0.00010798,2]
[335265194,1724058635414,-376.29374457,0.00010798,2]
[335265195,1724058635424,-166.560557,0.00010798,2]
[335265196,1724058635433,-500.0,0.00010798,2]
[335265197,1724058635444,-500.0,0.00010798,2]
[335265198,1724058635454,-1359.29,0.00010798,2]
[335265199,1724058635463,-500.0,0.00010798,2]
[335265200,1724058635472,-500.0,0.00010798,2]
[335265201,1724058635482,-500.0,0.00010798,2]
[335265202,1724058635491,-3646.86,0.00010798,2]
[335265203,1724058635500,-534.25,0.00010798,2]
[335265204,1724058635510,-500.0,0.00010798,2]
[335265205,1724058635519,-4837.8,0.00010798,2]
[335265206,1724058635529,-162.44314614,0.00010798,2]
[335265207,1724058635538,-151.0,0.00010798,2]
[335265208,1724058635547,-500.0,0.00010798,2]
[335265209,1724058635556,-552.99614516,0.00010798,2]
[335265210,1724058635566,-1897.8,0.00010798,2]
[335265211,1724058635575,-500.0,0.00010798,2]
[335265212,1724058635584,-442.74551985,0.00010798,2]
[335265213,1724058635593,-381.10509576,0.00010798,2]
[335265214,1724058635603,-151.0,0.00010798,2]
[335265215,1724058635613,-575.18,0.00010798,2]
[335265216,1724058635622,-585.24101313,0.00010798,2]
[335265217,1724058635632,-151.0,0.00010798,2]
[335265218,1724058635641,-500.0,0.00010798,2]
[335265219,1724058635651,-764.35,0.00010798,2]
[335265220,1724058635662,-151.0,0.00010798,2]
[335265221,1724058635671,-500.0,0.00010798,2]
[335265222,1724058635681,-237.49909605,0.00010798,2]
[335265223,1724058635690,-500.0,0.00010798,2]
[335265224,1724058635699,-151.0,0.00010798,2]
[335265225,1724058635710,-500.0,0.00010798,2]
[335265226,1724058635720,-665.58,0.00010798,2]
[335265227,1724058635732,-507.55146301,0.00010798,2]
[335265228,1724058635741,-500.0,0.00010798,2]
[335265229,1724058635751,-388.738334,0.00010799,2]
[335265230,1724058635761,-388.738334,0.00010799,2]
[335265231,1724058635771,-151.0,0.00010799,2]
[335265232,1724058635780,-151.0,0.00010799,2]
[335265233,1724058635790,-151.0,0.00010799,2]
[335265234,1724058635800,-588.94,0.00010799,2]
[335265235,1724058635810,-937.710506,0.00010799,2]
[335265236,1724058635819,-261.493027,0.00010799,2]
[335265237,1724058635830,-1301.29,0.00010799,2]
[335265238,1724058635839,-937.710506,0.00010799,2]
[335265239,1724058635849,-261.493027,0.00010799,2]
[335265240,1724058635858,-319.688934,0.00010799,2]
[335265241,1724058635867,-319.688934,0.00010799,2]
[335265242,1724058635877,-426.41,0.000108,2]
[335265243,1724058635886,-248.95855497,0.00010862,2]
[335265244,1724058635895,-454.48746689,0.00010862,2]
[335265245,1724058635905,-158.64164025,0.00010862,2]
[335265246,1724058635915,-320.37850264,0.00010862,2]
[335265247,1724058635923,-21769.0,0.00010869,2]
[335265248,1724058635933,-5844.0,0.00010869,2]
[335265249,1724058635942,-979.619,0.00010869,2]
[335265250,1724058635952,-179.31,0.00010876,2]
[335265251,1724058635961,-151.0,0.00010877,2]
[335265252,1724058635970,-151.0,0.00010877,2]
[335265253,1724058635979,-500.0,0.00010886,2]
[335265254,1724058635988,-3254.26,0.00010886,2]
[335265255,1724058635998,-537.33,0.00010886,2]
[335265256,1724058636007,-1273.61,0.00010886,2]
[335265257,1724058636016,-500.0,0.00010886,2]
[335265258,1724058636026,-7144.69,0.00010886,2]
[335265259,1724058636035,-500.0,0.00010886,2]
[335265260,1724058636045,-500.0,0.00010886,2]
[335265261,1724058636055,-500.0,0.00010886,2]
[335265262,1724058636064,-555.79,0.00010886,2]
[335265263,1724058636073,-174.05,0.00010887,2]
[335265264,1724058636082,-522.70240572,0.00010887,2]
[335265265,1724058636093,-608.85,0.00010887,2]
[335265266,1724058636104,-500.0,0.00010887,2]
[335265267,1724058636114,-500.0,0.00010887,2]
[335265268,1724058636125,-500.0,0.00010887,2]
[335265269,1724058636135,-387.123356,0.00010887,2]
[335265270,1724058636145,-500.0,0.00010887,2]
[335265271,1724058636155,-387.123356,0.00010887,2]
[335265272,1724058636165,-500.0,0.00010887,2]
[335265273,1724058636174,-500.0,0.00010887,2]
[335265274,1724058636184,-151.0,0.00010887,2]
[335265275,1724058636196,-500.0,0.00010887,2]
[335265276,1724058636206,-151.0,0.00010887,2]
[335265277,1724058636217,-500.0,0.00010887,2]
[335265278,1724058636226,-500.0,0.00010887,2]
[335265279,1724058636237,-168.22996714,0.00010887,2]
[335265280,1724058636247,-1190.96,0.00010887,2]
[335265281,1724058636257,-500.0,0.00010887,2]
[335265282,1724058636266,-158.798286,0.00010887,2]
[335265283,1724058636275,-624.67,0.00010887,2]
[335265284,1724058636285,-992.48,0.00010887,2]
[335265285,1724058636295,-158.798286,0.00010887,2]
[335265286,1724058636305,-500.0,0.00010887,2]
[335265287,1724058636316,-151.0,0.00010887,2]
[335265288,1724058636325,-151.0,0.00010887,2]
[335265289,1724058636334,-501.46921149,0.00010887,2]
[335265290,1724058636344,-151.0,0.00010887,2]
[335265291,1724058636485,-500.0,0.00010887,2]
[335265292,1724058636495,-151.0,0.00010887,2]
[335265293,1724058636504,-151.0,0.00010887,2]
[335265294,1724058636513,-151.0,0.00010887,2]
[335265295,1724058636522,-151.0,0.00010887,2]
[335265296,1724058636531,-500.0,0.00010887,2]
[335265297,1724058636540,-151.0,0.00010887,2]
[335265298,1724058636549,-256.073329,0.00010887,2]
[335265299,1724058636558,-256.073329,0.00010887,2]
[335265300,1724058636567,-500.0,0.00010887,2]
[335265301,1724058636576,-500.0,0.00010887,2]
[335265302,1724058636586,-500.85956728,0.00010887,2]
[335265303,1724058636596,-500.0,0.00010887,2]
[335265304,1724058636606,-500.0,0.00010887,2]
[335265305,1724058636615,-500.0,0.00010887,2]
[335265306,1724058636625,-500.0,0.00010887,2]
[335265307,1724058636634,-462.207082,0.00010887,2]
[335265308,1724058636644,-821.47,0.00010887,2]
[335265309,1724058636653,-500.0,0.00010887,2]
[335265310,1724058636663,-462.207082,0.00010887,2]
[335265311,1724058636672,-500.0,0.00010887,2]
[335265312,1724058636682,-500.0,0.00010887,2]
[335265313,1724058636691,-500.0,0.00010887,2]
[335265314,1724058636701,-505.11415518,0.00010887,2]
[335265315,1724058636711,-500.56,0.00010887,2]
[335265316,1724058636721,-500.0,0.00010887,2]
[335265317,1724058636734,-522.53938355,0.00010887,2]
[335265318,1724058636744,-152.813468,0.00010887,2]
[335265319,1724058636753,-500.0,0.00010887,2]
[335265320,1724058636762,-152.813468,0.00010887,2]
[335265321,1724058636772,-500.0,0.00010887,2]
[335265322,1724058636781,-151.0,0.00010887,2]
[335265323,1724058636791,-793.52,0.00010887,2]
[335265324,1724058636801,-150.0,0.00010887,2]
[335265325,1724058636811,-500.0,0.00010887,2]
[335265326,1724058636821,-151.0,0.00010887,2]
[335265327,1724058636830,-502.55301289,0.00010887,2]
[335265328,1724058636840,-513.87303952,0.00010887,2]
[335265329,1724058636849,-151.0,0.00010887,2]
[335265330,1724058636859,-3301.96899512,0.00010887,2]
[335265331,1724058636869,-500.0,0.00010887,2]
[335265332,1724058636880,-500.0,0.00010887,2]
[335265333,1724058636889,-500.0,0.00010887,2]
[335265334,1724058636898,-506.09486348,0.00010887,2]
[335265335,1724058636909,-727.47,0.00010887,2]
[335265336,1724058636918,-506.72145116,0.00010887,2]
[335265337,1724058636928,-500.0,0.00010887,2]
[335265338,1724058636937,-500.0,0.00010887,2]
[335265339,1724058636946,-500.0,0.00010887,2]
[335265340,1724058636956,-500.0,0.00010887,2]
[335265341,1724058636966,-521.67757237,0.00010887,2]
[335265342,1724058636975,-278.79296212,0.00010887,2]
[335265343,1724058636984,-500.0,0.00010887,2]
[335265344,1724058636993,-624.44,0.00010887,2]
[335265345,1724058637003,-500.0,0.00010887,2]
[335265346,1724058637013,-500.0,0.00010887,2]